[Event "Titled Tuesday Blitz June 20 Late 2023"]
[White "Barp, Alberto"]
[Black "FromTexas54"]
[WhiteFideId "872555"]
[WhiteElo "2313"]
[BlackElo "2414"]
[Result "1/2-1/2"]
[Round "1"]
[TimeControl "180+2"]
[Date "2023.06.20"]
[WhiteClock "0:00:21"]
[BlackClock "0:00:11"]
[Board "85"]

1. Nf3 {[%clk 0:02:58]}  g6 {[%clk 0:02:54]} 2. c4 {[%clk 0:02:57]}  Bg7 {[%clk 0:02:55]} 3. Nc3 {[%clk 0:02:58]}  d6 {[%clk 0:02:52]} 4. g3 {[%clk 0:02:57]}  e5 {[%clk 0:02:47]} 5. Bg2 {[%clk 0:02:57]}  f5 {[%clk 0:02:46]} 6. O-O {[%clk 0:02:58]}  Nf6 {[%clk 0:02:46]} 7. d4 {[%clk 0:02:54]}  e4 {[%clk 0:02:46]} 8. Ng5 {[%clk 0:02:49]}  h6 {[%clk 0:02:46]} 9. Nh3 {[%clk 0:02:49]}  O-O {[%clk 0:02:43]} 10. f3 {[%clk 0:02:49]}  exf3 {[%clk 0:02:41]} 11. exf3 {[%clk 0:02:47]}  Be6 {[%clk 0:02:37]} 12. b3 {[%clk 0:02:46]}  Kh7 {[%clk 0:02:35]} 13. Re1 {[%clk 0:02:46]}  Bg8 {[%clk 0:02:33]} 14. Nf4 {[%clk 0:02:47]}  Re8 {[%clk 0:02:30]} 15. Rxe8 {[%clk 0:02:46]}  Qxe8 {[%clk 0:02:31]} 16. h4 {[%clk 0:02:44]}  Nbd7 {[%clk 0:02:23]} 17. Qd3 {[%clk 0:02:34]}  h5 {[%clk 0:02:16]} 18. Bd2 {[%clk 0:02:31]}  Qf7 {[%clk 0:02:02]} 19. Nh3 {[%clk 0:02:30]}  Kh8 {[%clk 0:01:55]} 20. Ng5 {[%clk 0:02:30]}  Qf8 {[%clk 0:01:53]} 21. Ne2 {[%clk 0:02:29]}  Nh7 {[%clk 0:01:49]} 22. Nf4 {[%clk 0:02:29]}  Qf6 {[%clk 0:01:42]} 23. Nxh7 {[%clk 0:01:49]}  Kxh7 {[%clk 0:01:43]} 24. Be3 {[%clk 0:01:43]}  Re8 {[%clk 0:01:33]} 25. Rd1 {[%clk 0:01:43]}  c6 {[%clk 0:01:27]} 26. Nh3 {[%clk 0:01:42]}  Kh8 {[%clk 0:01:23]} 27. Bg5 {[%clk 0:01:42]}  Qf7 {[%clk 0:01:21]} 28. Bf4 {[%clk 0:01:43]}  Qf6 {[%clk 0:01:18]} 29. Qd2 {[%clk 0:01:35]}  Nf8 {[%clk 0:01:15]} 30. Bg5 {[%clk 0:01:34]}  Qf7 {[%clk 0:01:14]} 31. d5 {[%clk 0:01:28]}  c5 {[%clk 0:01:10]} 32. Nf4 {[%clk 0:01:25]}  Nh7 {[%clk 0:01:02]} 33. Bf1 {[%clk 0:01:19]}  Nxg5 {[%clk 0:01:00]} 34. hxg5 {[%clk 0:01:20]}  Bd4+ {[%clk 0:00:59]} 35. Kg2 {[%clk 0:01:20]}  Kh7 {[%clk 0:00:48]} 36. Qc2 {[%clk 0:01:15]}  Qe7 {[%clk 0:00:43]} 37. Nh3 {[%clk 0:01:03]}  Qe3 {[%clk 0:00:41]} 38. Bd3 {[%clk 0:01:00]}  Bf7 {[%clk 0:00:36]} 39. Qd2 {[%clk 0:00:59]}  Qe7 {[%clk 0:00:21]} 40. Rh1 {[%clk 0:00:49]}  Kg7 {[%clk 0:00:20]} 41. Nf4 {[%clk 0:00:47]}  Qe3 {[%clk 0:00:20]} 42. Qc2 {[%clk 0:00:43]}  Be5 {[%clk 0:00:16]} 43. Nh3 {[%clk 0:00:38]}  Bd4 {[%clk 0:00:15]} 44. Rd1 {[%clk 0:00:38]}  Re7 {[%clk 0:00:13]} 45. Rd2 {[%clk 0:00:36]}  Qe1 {[%clk 0:00:12]} 46. Re2 {[%clk 0:00:36]}  Rxe2+ {[%clk 0:00:11]} 47. Qxe2 {[%clk 0:00:37]}  Qa1 {[%clk 0:00:10]} 48. Nf4 {[%clk 0:00:35]}  Qg1+ {[%clk 0:00:07]} 49. Kh3 {[%clk 0:00:34]}  Qh1+ {[%clk 0:00:06]} 50. Qh2 {[%clk 0:00:32]}  Qxf3 {[%clk 0:00:07]} 51. Qe2 {[%clk 0:00:25]}  Qh1+ {[%clk 0:00:06]} 52. Qh2 {[%clk 0:00:24]}  Qf3 {[%clk 0:00:06]} 53. Be2 {[%clk 0:00:22]}  Qe3 {[%clk 0:00:04]} 54. Qg2 {[%clk 0:00:21]}  Be5 {[%clk 0:00:05]} 55. Qf3 {[%clk 0:00:17]}  Qxf3 {[%clk 0:00:04]} 56. Bxf3 {[%clk 0:00:18]}  Bxf4 {[%clk 0:00:05]} 57. gxf4 {[%clk 0:00:19]}  Kf8 {[%clk 0:00:05]} 58. Kg3 {[%clk 0:00:19]}  Ke7 {[%clk 0:00:05]} 59. Kf2 {[%clk 0:00:19]}  a6 {[%clk 0:00:06]} 60. Ke3 {[%clk 0:00:18]}  b5 {[%clk 0:00:06]} 61. Be2 {[%clk 0:00:18]}  b4 {[%clk 0:00:06]} 62. Kd2 {[%clk 0:00:17]}  a5 {[%clk 0:00:07]} 63. Kc2 {[%clk 0:00:17]}  Be8 {[%clk 0:00:07]} 64. Kb2 {[%clk 0:00:18]}  a4 {[%clk 0:00:07]} 65. Kc1 {[%clk 0:00:16]}  Kd8 {[%clk 0:00:06]} 66. Kd2 {[%clk 0:00:16]}  Kc7 {[%clk 0:00:06]} 67. Ke3 {[%clk 0:00:16]}  Kb6 {[%clk 0:00:07]} 68. Bd1 {[%clk 0:00:16]}  a3 {[%clk 0:00:07]} 69. Bc2 {[%clk 0:00:17]}  Kc7 {[%clk 0:00:08]} 70. Kf3 {[%clk 0:00:17]}  Kd8 {[%clk 0:00:08]} 71. Kg3 {[%clk 0:00:18]}  Ke7 {[%clk 0:00:09]} 72. Kh4 {[%clk 0:00:18]}  Kf8 {[%clk 0:00:08]} 73. Kg3 {[%clk 0:00:19]}  Kg7 {[%clk 0:00:09]} 74. Kh4 {[%clk 0:00:20]}  Bf7 {[%clk 0:00:10]} 75. Kg3 {[%clk 0:00:20]}  Bg8 {[%clk 0:00:10]} 76. Kh4 {[%clk 0:00:21]}  Bf7 {[%clk 0:00:10]} 77. Kg3 {[%clk 0:00:21]}  Be8 {[%clk 0:00:11]} 78. Kh4 {[%clk 0:00:21]}  Bf7 {[%clk 0:00:11]} 1/2-1/2


[Site "https://www.chess.com"]

[Event "Titled Tuesday Blitz June 20 Late 2023"]
[White "Timmermans, Mark"]
[Black "Paulsen, Dirk"]
[WhiteFideId "1026399"]
[BlackFideId "4601343"]
[WhiteElo "2460"]
[BlackElo "2339"]
[Result "0-1"]
[Round "1"]
[TimeControl "180+2"]
[Date "2023.06.20"]
[WhiteClock "0:00:05"]
[BlackClock "0:00:56"]
[Board "87"]

1. b4 {[%clk 0:02:59]}  e5 {[%clk 0:02:56]} 2. Bb2 {[%clk 0:02:59]}  Bxb4 {[%clk 0:02:56]} 3. Bxe5 {[%clk 0:03:00]}  Nf6 {[%clk 0:02:55]} 4. Nc3 {[%clk 0:03:00]}  Bxc3 {[%clk 0:02:50]} 5. Bxc3 {[%clk 0:03:00]}  d5 {[%clk 0:02:50]} 6. e3 {[%clk 0:02:59]}  O-O {[%clk 0:02:49]} 7. Nf3 {[%clk 0:03:00]}  c5 {[%clk 0:02:49]} 8. Be2 {[%clk 0:03:00]}  Nc6 {[%clk 0:02:48]} 9. O-O {[%clk 0:02:56]}  d4 {[%clk 0:02:37]} 10. Bb2 {[%clk 0:02:56]}  a6 {[%clk 0:02:37]} 11. a4 {[%clk 0:02:53]}  Be6 {[%clk 0:02:36]} 12. Ba3 {[%clk 0:02:46]}  b6 {[%clk 0:02:24]} 13. exd4 {[%clk 0:02:45]}  Nxd4 {[%clk 0:02:20]} 14. Nxd4 {[%clk 0:02:46]}  Qxd4 {[%clk 0:02:19]} 15. c3 {[%clk 0:02:46]}  Qd7 {[%clk 0:02:17]} 16. d4 {[%clk 0:02:46]}  Qc6 {[%clk 0:02:10]} 17. c4 {[%clk 0:02:42]}  Qc7 {[%clk 0:02:04]} 18. d5 {[%clk 0:02:40]}  Bf5 {[%clk 0:02:03]} 19. a5 {[%clk 0:02:34]}  Ne4 {[%clk 0:01:55]} 20. axb6 {[%clk 0:02:32]}  Qxb6 {[%clk 0:01:55]} 21. Bd3 {[%clk 0:02:26]}  Nd6 {[%clk 0:01:53]} 22. Qc2 {[%clk 0:02:18]}  Bxd3 {[%clk 0:01:50]} 23. Qxd3 {[%clk 0:02:19]}  a5 {[%clk 0:01:49]} 24. Rab1 {[%clk 0:02:17]}  Qc7 {[%clk 0:01:48]} 25. Rfc1 {[%clk 0:01:54]}  Rfe8 {[%clk 0:01:47]} 26. h3 {[%clk 0:01:51]}  Re4 {[%clk 0:01:47]} 27. Bb2 {[%clk 0:01:26]}  Rae8 {[%clk 0:01:43]} 28. Qg3 {[%clk 0:01:22]}  f5 {[%clk 0:01:32]} 29. Bxg7 {[%clk 0:01:18]}  f4 {[%clk 0:01:31]} 30. Qa3 {[%clk 0:01:04]}  Kxg7 {[%clk 0:01:28]} 31. f3 {[%clk 0:00:57]}  Re2 {[%clk 0:01:23]} 32. Qc3+ {[%clk 0:00:54]}  Kg8 {[%clk 0:01:22]} 33. Re1 {[%clk 0:00:54]}  Qg7 {[%clk 0:01:16]} 34. Qxg7+ {[%clk 0:00:42]}  Kxg7 {[%clk 0:01:16]} 35. Rxe2 {[%clk 0:00:35]}  Rxe2 {[%clk 0:01:15]} 36. Rb6 {[%clk 0:00:35]}  Nxc4 {[%clk 0:01:14]} 37. Rc6 {[%clk 0:00:36]}  Ne3 {[%clk 0:01:12]} 38. Rxc5 {[%clk 0:00:36]}  Rxg2+ {[%clk 0:01:12]} 39. Kh1 {[%clk 0:00:37]}  a4 {[%clk 0:01:12]} 40. Ra5 {[%clk 0:00:37]}  Ra2 {[%clk 0:01:11]} 41. d6 {[%clk 0:00:38]}  Kf7 {[%clk 0:01:02]} 42. Ra7+ {[%clk 0:00:34]}  Ke6 {[%clk 0:01:01]} 43. d7 {[%clk 0:00:33]}  Ke7 {[%clk 0:01:01]} 44. h4 {[%clk 0:00:33]}  h5 {[%clk 0:01:00]} 45. Kg1 {[%clk 0:00:31]}  a3 {[%clk 0:00:59]} 46. Kh1 {[%clk 0:00:31]}  Kd8 {[%clk 0:00:59]} 47. Kg1 {[%clk 0:00:31]}  Nc4 {[%clk 0:00:57]} 48. Ra4 {[%clk 0:00:05]}  Rc2 {[%clk 0:00:56]} 0-1


[Site "https://www.chess.com"]

[Event "Titled Tuesday Blitz June 20 Late 2023"]
[White "Daggupati, Balaji"]
[Black "Luo, Terry"]
[WhiteFideId "2090759"]
[BlackFideId "30931045"]
[WhiteElo "2704"]
[BlackElo "2265"]
[Result "1-0"]
[Round "1"]
[TimeControl "180+2"]
[Date "2023.06.20"]
[WhiteClock "0:00:52"]
[BlackClock "0:00:55"]
[Board "89"]

1. e4 {[%clk 0:03:00]}  e5 {[%clk 0:02:59]} 2. Nf3 {[%clk 0:02:59]}  Nc6 {[%clk 0:03:00]} 3. Bb5 {[%clk 0:03:00]}  a6 {[%clk 0:03:00]} 4. Ba4 {[%clk 0:03:00]}  Nge7 {[%clk 0:03:00]} 5. c3 {[%clk 0:03:00]}  Ng6 {[%clk 0:03:01]} 6. O-O {[%clk 0:02:58]}  d5 {[%clk 0:03:01]} 7. d3 {[%clk 0:02:41]}  Be7 {[%clk 0:03:00]} 8. Re1 {[%clk 0:02:41]}  O-O {[%clk 0:02:59]} 9. h3 {[%clk 0:02:34]}  Be6 {[%clk 0:02:49]} 10. Nbd2 {[%clk 0:02:34]}  f6 {[%clk 0:02:30]} 11. Nf1 {[%clk 0:02:30]}  Qd7 {[%clk 0:02:26]} 12. Ne3 {[%clk 0:02:22]}  dxe4 {[%clk 0:02:23]} 13. dxe4 {[%clk 0:02:21]}  Qxd1 {[%clk 0:02:21]} 14. Rxd1 {[%clk 0:02:21]}  b5 {[%clk 0:02:21]} 15. Bb3 {[%clk 0:02:20]}  Kf7 {[%clk 0:02:21]} 16. Nd5 {[%clk 0:02:19]}  Bd6 {[%clk 0:02:19]} 17. Nxc7 {[%clk 0:02:16]}  Bxc7 {[%clk 0:02:16]} 18. Rd7+ {[%clk 0:02:16]}  Nge7 {[%clk 0:02:12]} 19. Rxc7 {[%clk 0:02:15]}  Rfd8 {[%clk 0:02:08]} 20. Be3 {[%clk 0:02:14]}  Na5 {[%clk 0:02:03]} 21. Bc5 {[%clk 0:02:05]}  Re8 {[%clk 0:01:43]} 22. Bd5 {[%clk 0:01:23]}  Rac8 {[%clk 0:01:34]} 23. Rxc8 {[%clk 0:01:13]}  Rxc8 {[%clk 0:01:33]} 24. Bb4 {[%clk 0:01:12]}  Nc4 {[%clk 0:01:23]} 25. Bxc4 {[%clk 0:01:11]}  Bxc4 {[%clk 0:01:23]} 26. a4 {[%clk 0:01:10]}  Nc6 {[%clk 0:01:23]} 27. Bc5 {[%clk 0:01:07]}  Na5 {[%clk 0:01:14]} 28. Bb6 {[%clk 0:01:01]}  Nb3 {[%clk 0:01:13]} 29. Ra3 {[%clk 0:01:00]}  Rc6 {[%clk 0:01:12]} 30. Be3 {[%clk 0:00:56]}  Rd6 {[%clk 0:01:03]} 31. axb5 {[%clk 0:00:54]}  axb5 {[%clk 0:01:04]} 32. Ra7+ {[%clk 0:00:53]}  Kg6 {[%clk 0:01:05]} 33. Nh4+ {[%clk 0:00:53]}  Kh5 {[%clk 0:01:03]} 34. Rxg7 {[%clk 0:00:52]}  Rd1+ {[%clk 0:00:55]} 35. Kh2 {[%clk 0:00:52]} 1-0


[Site "https://www.chess.com"]

[Event "Titled Tuesday Blitz June 20 Late 2023"]
[White "Tymrakiewicz, Rafal"]
[Black "Fodor, Tamas Jr."]
[WhiteFideId "1108832"]
[BlackFideId "723762"]
[WhiteElo "2151"]
[BlackElo "2504"]
[Result "0-1"]
[Round "1"]
[TimeControl "180+2"]
[Date "2023.06.20"]
[WhiteClock "0:00:00"]
[BlackClock "0:01:47"]
[Board "90"]

1. d4 {[%clk 0:03:00]}  d5 {[%clk 0:02:59]} 2. Bg5 {[%clk 0:02:59]}  h6 {[%clk 0:02:56]} 3. Bh4 {[%clk 0:02:59]}  c5 {[%clk 0:02:54]} 4. e3 {[%clk 0:02:59]}  Nc6 {[%clk 0:02:54]} 5. c3 {[%clk 0:02:58]}  Qb6 {[%clk 0:02:48]} 6. Qb3 {[%clk 0:02:54]}  c4 {[%clk 0:02:48]} 7. Qc2 {[%clk 0:02:54]}  Bf5 {[%clk 0:02:43]} 8. Qc1 {[%clk 0:02:54]}  g5 {[%clk 0:02:41]} 9. Bg3 {[%clk 0:02:53]}  Bg7 {[%clk 0:02:42]} 10. Nd2 {[%clk 0:02:52]}  Nf6 {[%clk 0:02:40]} 11. Be2 {[%clk 0:02:35]}  Rc8 {[%clk 0:02:39]} 12. Ngf3 {[%clk 0:02:33]}  O-O {[%clk 0:02:39]} 13. Ne5 {[%clk 0:02:30]}  Ne4 {[%clk 0:02:35]} 14. Nxe4 {[%clk 0:02:24]}  Nxe5 {[%clk 0:02:35]} 15. Bxe5 {[%clk 0:02:17]}  Bxe5 {[%clk 0:02:33]} 16. Ng3 {[%clk 0:01:59]}  Bxg3 {[%clk 0:02:31]} 17. hxg3 {[%clk 0:01:59]}  Kg7 {[%clk 0:02:30]} 18. Bd1 {[%clk 0:01:42]}  Rfe8 {[%clk 0:02:26]} 19. Bc2 {[%clk 0:01:42]}  Bg6 {[%clk 0:02:24]} 20. Bxg6 {[%clk 0:01:36]}  Qxg6 {[%clk 0:02:24]} 21. Qb1 {[%clk 0:01:35]}  e5 {[%clk 0:02:24]} 22. Qxg6+ {[%clk 0:01:34]}  Kxg6 {[%clk 0:02:25]} 23. dxe5 {[%clk 0:01:33]}  Rxe5 {[%clk 0:02:24]} 24. O-O-O {[%clk 0:01:33]}  b5 {[%clk 0:02:24]} 25. Rd4 {[%clk 0:01:29]}  a5 {[%clk 0:02:23]} 26. Rhd1 {[%clk 0:01:25]}  Rc5 {[%clk 0:02:20]} 27. a3 {[%clk 0:01:19]}  Rf5 {[%clk 0:02:20]} 28. f4 {[%clk 0:01:18]}  g4 {[%clk 0:02:20]} 29. e4 {[%clk 0:01:17]}  dxe4 {[%clk 0:02:20]} 30. Rxe4 {[%clk 0:01:17]}  h5 {[%clk 0:02:19]} 31. Rd8 {[%clk 0:01:08]}  Rfd5 {[%clk 0:02:15]} 32. Rd4 {[%clk 0:01:02]}  Rxd8 {[%clk 0:02:14]} 33. Rxd8 {[%clk 0:01:01]}  Kf5 {[%clk 0:02:14]} 34. Kd2 {[%clk 0:01:00]}  Ke6 {[%clk 0:02:14]} 35. Ke3 {[%clk 0:00:59]}  Rd5 {[%clk 0:02:13]} 36. Rb8 {[%clk 0:00:45]}  Rd3+ {[%clk 0:02:05]} 37. Ke2 {[%clk 0:00:42]}  Rxg3 {[%clk 0:02:05]} 38. Kf2 {[%clk 0:00:42]}  Rd3 {[%clk 0:02:03]} 39. Rxb5 {[%clk 0:00:37]}  h4 {[%clk 0:02:02]} 40. Ke2 {[%clk 0:00:25]}  Rd5 {[%clk 0:01:49]} 41. Rb6+ {[%clk 0:00:20]}  Kf5 {[%clk 0:01:49]} 42. Rh6 {[%clk 0:00:20]}  Kxf4 {[%clk 0:01:47]} 43. Rxh4 {[%clk 0:00:18]}  Kg3 {[%clk 0:01:48]} 44. Rh7 {[%clk 0:00:17]}  f5 {[%clk 0:01:47]} 45. Rc7 {[%clk 0:00:10]}  Kxg2 {[%clk 0:01:46]} 46. Rxc4 {[%clk 0:00:10]}  Re5+ {[%clk 0:01:46]} 47. Kd2 {[%clk 0:00:09]}  g3 {[%clk 0:01:47]} 48. b4 {[%clk 0:00:08]}  axb4 {[%clk 0:01:46]} 49. cxb4 {[%clk 0:00:09]}  Kh3 {[%clk 0:01:46]} 50. Rc8 {[%clk 0:00:08]}  g2 {[%clk 0:01:45]} 51. Rh8+ {[%clk 0:00:08]}  Kg3 {[%clk 0:01:46]} 52. Rg8+ {[%clk 0:00:09]}  Kf2 {[%clk 0:01:46]} 53. a4 {[%clk 0:00:09]}  f4 {[%clk 0:01:46]} 54. b5 {[%clk 0:00:09]}  g1=Q {[%clk 0:01:45]} 55. Rxg1 {[%clk 0:00:08]}  Kxg1 {[%clk 0:01:46]} 56. b6 {[%clk 0:00:09]}  f3 {[%clk 0:01:45]} 57. b7 {[%clk 0:00:09]}  Re8 {[%clk 0:01:45]} 58. a5 {[%clk 0:00:09]}  f2 {[%clk 0:01:46]} 59. a6 {[%clk 0:00:10]}  f1=Q {[%clk 0:01:46]} 60. a7 {[%clk 0:00:10]}  Qg2+ {[%clk 0:01:46]} 61. Kc3 {[%clk 0:00:00]}  Qxb7 {[%clk 0:01:47]} 0-1


[Site "https://www.chess.com"]

[Event "Titled Tuesday Blitz June 20 Late 2023"]
[White "Makridis, Dimitrios"]
[Black "Buchenau, Frank"]
[WhiteFideId "25864475"]
[BlackFideId "4604350"]
[WhiteElo "2277"]
[BlackElo "2157"]
[Result "1-0"]
[Round "1"]
[TimeControl "180+2"]
[Date "2023.06.20"]
[WhiteClock "0:00:08"]
[BlackClock "0:00:08"]
[Board "93"]

1. e4 {[%clk 0:02:55]}  e6 {[%clk 0:03:00]} 2. d4 {[%clk 0:02:48]}  d5 {[%clk 0:03:00]} 3. Nc3 {[%clk 0:02:49]}  Nf6 {[%clk 0:03:00]} 4. e5 {[%clk 0:02:48]}  Nfd7 {[%clk 0:02:59]} 5. f4 {[%clk 0:02:42]}  c5 {[%clk 0:03:00]} 6. Nf3 {[%clk 0:02:43]}  Nc6 {[%clk 0:03:00]} 7. Be3 {[%clk 0:02:44]}  a6 {[%clk 0:03:00]} 8. Qd2 {[%clk 0:02:44]}  b5 {[%clk 0:03:00]} 9. Be2 {[%clk 0:02:45]}  Qb6 {[%clk 0:02:57]} 10. Nd1 {[%clk 0:02:43]}  b4 {[%clk 0:02:56]} 11. O-O {[%clk 0:02:42]}  cxd4 {[%clk 0:02:50]} 12. Nxd4 {[%clk 0:02:43]}  Nxd4 {[%clk 0:02:48]} 13. Bxd4 {[%clk 0:02:44]}  Qxd4+ {[%clk 0:02:45]} 14. Qxd4 {[%clk 0:02:44]}  Bc5 {[%clk 0:02:45]} 15. Qxc5 {[%clk 0:02:44]}  Nxc5 {[%clk 0:02:44]} 16. Kf2 {[%clk 0:02:45]}  a5 {[%clk 0:02:40]} 17. Ke3 {[%clk 0:02:45]}  Ba6 {[%clk 0:02:37]} 18. Bxa6 {[%clk 0:02:44]}  Rxa6 {[%clk 0:02:36]} 19. Nf2 {[%clk 0:02:43]}  Ke7 {[%clk 0:02:28]} 20. Rfc1 {[%clk 0:02:43]}  f6 {[%clk 0:02:24]} 21. Nd3 {[%clk 0:02:33]}  Rc8 {[%clk 0:02:16]} 22. a3 {[%clk 0:01:44]}  Nxd3 {[%clk 0:01:42]} 23. cxd3 {[%clk 0:01:45]}  Rxc1 {[%clk 0:01:28]} 24. Rxc1 {[%clk 0:01:46]}  Kd7 {[%clk 0:01:25]} 25. Rc5 {[%clk 0:01:46]}  bxa3 {[%clk 0:01:09]} 26. bxa3 {[%clk 0:01:47]}  a4 {[%clk 0:01:08]} 27. g4 {[%clk 0:01:36]}  fxe5 {[%clk 0:01:07]} 28. fxe5 {[%clk 0:01:37]}  Ra8 {[%clk 0:00:54]} 29. h4 {[%clk 0:01:35]}  h5 {[%clk 0:00:43]} 30. gxh5 {[%clk 0:01:18]}  Rh8 {[%clk 0:00:41]} 31. Ra5 {[%clk 0:01:11]}  Rxh5 {[%clk 0:00:41]} 32. Rxa4 {[%clk 0:01:00]}  Rxe5+ {[%clk 0:00:40]} 33. Kf4 {[%clk 0:00:53]}  Rf5+ {[%clk 0:00:37]} 34. Kg4 {[%clk 0:00:54]}  Rf1 {[%clk 0:00:25]} 35. Ra7+ {[%clk 0:00:37]}  Kd6 {[%clk 0:00:25]} 36. a4 {[%clk 0:00:37]}  Rd1 {[%clk 0:00:23]} 37. a5 {[%clk 0:00:13]}  Ke5 {[%clk 0:00:17]} 38. a6 {[%clk 0:00:09]}  Kd4 {[%clk 0:00:17]} 39. Kh5 {[%clk 0:00:07]}  Rg1 {[%clk 0:00:16]} 40. Re7 {[%clk 0:00:08]}  e5 {[%clk 0:00:15]} 41. a7 {[%clk 0:00:08]}  Ra1 {[%clk 0:00:14]} 42. Kg6 {[%clk 0:00:08]}  Rg1+ {[%clk 0:00:12]} 43. Kf7 {[%clk 0:00:08]}  Rf1+ {[%clk 0:00:11]} 44. Kxg7 {[%clk 0:00:08]}  Ra1 {[%clk 0:00:11]} 45. h5 {[%clk 0:00:08]}  Kxd3 {[%clk 0:00:11]} 46. h6 {[%clk 0:00:08]}  Rg1+ {[%clk 0:00:11]} 47. Kf8 {[%clk 0:00:09]}  Rf1+ {[%clk 0:00:10]} 48. Rf7 {[%clk 0:00:08]}  Ra1 {[%clk 0:00:10]} 49. h7 {[%clk 0:00:08]}  e4 {[%clk 0:00:08]} 50. h8=Q {[%clk 0:00:08]} 1-0


[Site "https://www.chess.com"]

[Event "Titled Tuesday Blitz June 20 Late 2023"]
[White "Turayev, Shahruh"]
[Black "Arnold, Ken"]
[WhiteFideId "14003856"]
[BlackFideId "2056836"]
[WhiteElo "2113"]
[BlackElo "2393"]
[Result "1-0"]
[Round "1"]
[TimeControl "180+2"]
[Date "2023.06.20"]
[WhiteClock "0:00:05"]
[BlackClock "0:00:00"]
[Board "95"]

1. e4 {[%clk 0:02:58]}  c6 {[%clk 0:02:59]} 2. Nc3 {[%clk 0:02:58]}  d5 {[%clk 0:03:00]} 3. exd5 {[%clk 0:02:59]}  cxd5 {[%clk 0:03:00]} 4. d4 {[%clk 0:03:00]}  Nf6 {[%clk 0:03:00]} 5. Bf4 {[%clk 0:03:00]}  a6 {[%clk 0:02:57]} 6. Nf3 {[%clk 0:03:00]}  Nc6 {[%clk 0:02:56]} 7. Ne5 {[%clk 0:03:00]}  Bd7 {[%clk 0:02:55]} 8. Nxc6 {[%clk 0:02:56]}  Bxc6 {[%clk 0:02:55]} 9. Bd3 {[%clk 0:02:56]}  e6 {[%clk 0:02:54]} 10. O-O {[%clk 0:02:56]}  Bd6 {[%clk 0:02:54]} 11. Ne2 {[%clk 0:02:57]}  Qc7 {[%clk 0:02:52]} 12. Bxd6 {[%clk 0:02:56]}  Qxd6 {[%clk 0:02:52]} 13. c3 {[%clk 0:02:56]}  O-O {[%clk 0:02:51]} 14. Ng3 {[%clk 0:02:40]}  g6 {[%clk 0:02:47]} 15. Qf3 {[%clk 0:02:33]}  Kg7 {[%clk 0:02:43]} 16. Qe3 {[%clk 0:02:08]}  Rfe8 {[%clk 0:02:30]} 17. f4 {[%clk 0:02:08]}  b5 {[%clk 0:02:28]} 18. a3 {[%clk 0:02:06]}  a5 {[%clk 0:02:27]} 19. Qe5 {[%clk 0:02:06]}  Qxe5 {[%clk 0:02:14]} 20. fxe5 {[%clk 0:02:07]}  Nd7 {[%clk 0:02:14]} 21. b4 {[%clk 0:01:58]}  Nb6 {[%clk 0:02:12]} 22. h4 {[%clk 0:01:44]}  Na4 {[%clk 0:02:11]} 23. Rac1 {[%clk 0:01:40]}  Rec8 {[%clk 0:02:09]} 24. Bc2 {[%clk 0:01:26]}  Nb6 {[%clk 0:01:47]} 25. h5 {[%clk 0:01:25]}  Be8 {[%clk 0:01:44]} 26. Bb1 {[%clk 0:01:00]}  Nc4 {[%clk 0:01:41]} 27. hxg6 {[%clk 0:00:33]}  hxg6 {[%clk 0:01:40]} 28. Nh1 {[%clk 0:00:10]}  Nxa3 {[%clk 0:01:33]} 29. Bd3 {[%clk 0:00:10]}  Nc4 {[%clk 0:01:24]} 30. Bxc4 {[%clk 0:00:10]}  bxc4 {[%clk 0:01:22]} 31. bxa5 {[%clk 0:00:10]}  Rxa5 {[%clk 0:01:22]} 32. Rf3 {[%clk 0:00:10]}  Rb8 {[%clk 0:01:19]} 33. Nf2 {[%clk 0:00:11]}  Rb2 {[%clk 0:01:16]} 34. Ng4 {[%clk 0:00:11]}  Raa2 {[%clk 0:01:15]} 35. Rg3 {[%clk 0:00:10]}  Rc2 {[%clk 0:01:09]} 36. Rf1 {[%clk 0:00:09]}  Kf8 {[%clk 0:00:45]} 37. Nf6 {[%clk 0:00:07]}  Ke7 {[%clk 0:00:44]} 38. Rf4 {[%clk 0:00:07]}  Rc1+ {[%clk 0:00:42]} 39. Kh2 {[%clk 0:00:07]}  Raa1 {[%clk 0:00:42]} 40. Rgf3 {[%clk 0:00:06]}  Rh1+ {[%clk 0:00:40]} 41. Kg3 {[%clk 0:00:07]}  Ra7 {[%clk 0:00:22]} 42. Ng8+ {[%clk 0:00:03]}  Kf8 {[%clk 0:00:19]} 43. Nf6 {[%clk 0:00:04]}  Rd1 {[%clk 0:00:13]} 44. Rh4 {[%clk 0:00:04]}  Ke7 {[%clk 0:00:06]} 45. Rh8 {[%clk 0:00:04]}  Ra8 {[%clk 0:00:05]} 46. Ng8+ {[%clk 0:00:03]}  Kf8 {[%clk 0:00:03]} 47. Nf6+ {[%clk 0:00:03]}  Ke7 {[%clk 0:00:03]} 48. Ng8+ {[%clk 0:00:02]}  Kd7 {[%clk 0:00:04]} 49. Rh7 {[%clk 0:00:02]}  Rd3 {[%clk 0:00:03]} 50. Nh6 {[%clk 0:00:02]}  Rxf3+ {[%clk 0:00:03]} 51. gxf3 {[%clk 0:00:02]}  Ra3 {[%clk 0:00:03]} 52. Nxf7 {[%clk 0:00:02]}  Bxf7 {[%clk 0:00:03]} 53. Rxf7+ {[%clk 0:00:03]}  Ke8 {[%clk 0:00:03]} 54. Rf6 {[%clk 0:00:03]}  Ke7 {[%clk 0:00:03]} 55. Rxg6 {[%clk 0:00:04]}  Rxc3 {[%clk 0:00:03]} 56. Rg7+ {[%clk 0:00:04]}  Kf8 {[%clk 0:00:03]} 57. Rc7 {[%clk 0:00:05]}  Rd3 {[%clk 0:00:03]} 58. Kg4 {[%clk 0:00:05]}  Rxd4+ {[%clk 0:00:00]} 59. f4 {[%clk 0:00:05]} 1-0


[Site "https://www.chess.com"]

[Event "Titled Tuesday Blitz June 20 Late 2023"]
[White "Adewumi, Tanitoluwa"]
[Black "Fernandez, Maria Florencia"]
[WhiteFideId "30966396"]
[BlackFideId "116459"]
[WhiteElo "2690"]
[BlackElo "2074"]
[Result "0-1"]
[Round "1"]
[TimeControl "180+2"]
[Date "2023.06.20"]
[WhiteClock "0:00:14"]
[BlackClock "0:00:48"]
[Board "97"]

1. e4 {[%clk 0:02:53]}  c5 {[%clk 0:02:58]} 2. Nf3 {[%clk 0:02:51]}  d6 {[%clk 0:02:57]} 3. Bb5+ {[%clk 0:02:49]}  Nd7 {[%clk 0:02:57]} 4. c3 {[%clk 0:02:48]}  Nf6 {[%clk 0:02:53]} 5. Bd3 {[%clk 0:02:47]}  g6 {[%clk 0:02:53]} 6. Bc2 {[%clk 0:02:46]}  Bg7 {[%clk 0:02:53]} 7. d4 {[%clk 0:02:45]}  O-O {[%clk 0:02:53]} 8. O-O {[%clk 0:02:46]}  e5 {[%clk 0:02:40]} 9. dxe5 {[%clk 0:02:46]}  Nxe5 {[%clk 0:02:36]} 10. Nxe5 {[%clk 0:02:44]}  dxe5 {[%clk 0:02:35]} 11. c4 {[%clk 0:02:40]}  Be6 {[%clk 0:02:32]} 12. b3 {[%clk 0:02:36]}  Qd4 {[%clk 0:02:25]} 13. Qxd4 {[%clk 0:02:21]}  exd4 {[%clk 0:02:25]} 14. Bd3 {[%clk 0:02:04]}  Nxe4 {[%clk 0:02:13]} 15. Bxe4 {[%clk 0:01:38]}  d3 {[%clk 0:02:09]} 16. Bxd3 {[%clk 0:00:53]}  Bxa1 {[%clk 0:02:07]} 17. Be3 {[%clk 0:00:50]}  Bd4 {[%clk 0:02:02]} 18. Bxd4 {[%clk 0:00:49]}  cxd4 {[%clk 0:02:03]} 19. Nd2 {[%clk 0:00:45]}  a5 {[%clk 0:01:44]} 20. Nf3 {[%clk 0:00:31]}  Rfd8 {[%clk 0:01:42]} 21. h3 {[%clk 0:00:27]}  a4 {[%clk 0:01:41]} 22. b4 {[%clk 0:00:20]}  a3 {[%clk 0:01:36]} 23. Re1 {[%clk 0:00:19]}  Ra4 {[%clk 0:01:31]} 24. Rb1 {[%clk 0:00:17]}  b5 {[%clk 0:01:20]} 25. c5 {[%clk 0:00:18]}  Bxa2 {[%clk 0:01:18]} 26. Ra1 {[%clk 0:00:18]}  Bc4 {[%clk 0:01:17]} 27. Bc2 {[%clk 0:00:16]}  Rxb4 {[%clk 0:01:15]} 28. Ne5 {[%clk 0:00:17]}  Rb2 {[%clk 0:01:09]} 29. Be4 {[%clk 0:00:17]}  a2 {[%clk 0:01:01]} 30. Nc6 {[%clk 0:00:14]}  Re8 {[%clk 0:00:48]} 0-1


[Site "https://www.chess.com"]